fUSD/lending_fUSD_20240214
["ID","MTS","AMOUNT","RATE_DAILY","PERIOD"]
[313973107,1707897035301,-152.43,0.00025586,2]
[313973108,1707897035311,-311.12,0.00025651,2]
[313973109,1707897035321,-166.6,0.00025667,2]
[313973110,1707897035331,-152.0,0.00025678,3]
[313973111,1707897035340,-171.15,0.00025761,2]
[313973112,1707897035349,-162.96346073,0.00025845,2]
[313973113,1707897035358,-152.43,0.00026235,2]
[313973114,1707897035368,-152.0,0.00026282,4]
[313973115,1707897035378,-531.12,0.00026377,2]
[313973116,1707897035387,-61559.66052837,0.00026798,2]
[313973117,1707897035397,-10380.601,0.00026798,2]
[313973118,1707897035406,-2447.8751,0.00026798,2]
[313973119,1707897035416,-646.11933464,0.000268,2]
[313973120,1707897035425,-152.0,0.00026887,5]
[313973121,1707897035435,-635.917789,0.00026897,2]
[313973122,1707897035445,-4410.9569375,0.00026898,2]
[313973123,1707897035456,-3017.52799565,0.00026898,2]
[313973124,1707897035465,-770.66386256,0.00026898,2]
[313973125,1707897035474,-203.77776113,0.00026898,2]
[313973126,1707897035484,-216.78314187,0.00026898,2]
[313973127,1707897035493,-162.65328233,0.00026898,2]
[313973128,1707897035503,-3055.8441189,0.00026898,2]
[313973129,1707897035513,-290.51857741,0.00026898,2]
[313973130,1707897035522,-1046.94308784,0.00026898,2]
[313973131,1707897035532,-1262.8216172,0.00026898,2]
[313973132,1707897035542,-2157.90997305,0.00026898,2]
[313973133,1707897035552,-155.0,0.00026898,2]
[313973134,1707897035562,-3658.82946026,0.00026898,2]
[313973135,1707897035572,-264.85781703,0.00026898,2]
[313973136,1707897035582,-212.87694586,0.00026898,2]
[313973137,1707897035591,-161.94131046,0.00026898,2]
[313973138,1707897035600,-5492.27355371,0.00026898,2]
[313973139,1707897035610,-4667.39309302,0.00026898,2]
[313973140,1707897035619,-2326.60008793,0.00026898,2]
[313973141,1707897035628,-654.64906978,0.00026898,2]
[313973142,1707897035637,-907.6147,0.00026898,2]
[313973143,1707897035647,-4225.1412,0.00026898,2]
[313973144,1707897035657,-87537.7903,0.00026898,2]
[313973145,1707897035666,-2500.0,0.00026898,2]
[313973146,1707897035675,-168.50558901,0.000269,3]
[313973147,1707897035685,-18720.26245093,0.00026996,4]
[313973148,1707897035694,-2035.1,0.00026996,2]
[313973149,1707897035703,-156.71747184,0.00026996,2]
[313973150,1707897035713,-277.2234829,0.00026997,2]
[313973151,1707897035722,-49406.25706612,0.00026998,2]
[313973152,1707897035735,-216758.0110135,0.00026998,2]
[313973153,1707897035745,-1300.0,0.00027,3]
[313973154,1707897035755,-418.68541572,0.00027,2]
[313973155,1707897035764,-1000.0,0.00027174,2]
[313973156,1707897035773,-500.0,0.00027347,2]
[313973157,1707897035783,-565.24,0.00027347,2]
[313973158,1707897035793,-500.0,0.00027347,2]
[313973159,1707897035802,-242.93,0.00027347,2]
[313973160,1707897035813,-500.0,0.00027347,2]
[313973161,1707897035823,-500.0,0.00027347,2]
[313973162,1707897035833,-500.0,0.00027347,2]
[313973163,1707897035842,-500.0,0.00027347,2]
[313973164,1707897035852,-500.0,0.00027347,2]
[313973165,1707897035862,-500.0,0.00027347,2]
[313973166,1707897035871,-500.0,0.00027347,2]
[313973167,1707897035880,-500.0,0.00027347,2]
[313973168,1707897035890,-500.0,0.00027347,2]
[313973169,1707897035899,-500.0,0.00027347,2]
[313973170,1707897035909,-500.0,0.00027347,2]
[313973171,1707897035919,-500.0,0.00027347,2]
[313973172,1707897035928,-500.0,0.00027347,2]
[313973173,1707897035937,-155.0,0.00027397,2]
[313973174,1707897035947,-152.0,0.00027492,6]
[313973175,1707897035957,-63731.0153909,0.0002774,2]
[313973176,1707897035969,-616.61648566,0.0002774,2]
[313973177,1707897035982,-318.3432,0.0002774,2]
[313973178,1707897035994,-2417.29712188,0.0002774,2]
[313973179,1707897036005,-21528.0,0.0002774,2]
[313973180,1707897036038,-31440.72780156,0.0002774,2]
[313973181,1707897036048,-311.12,0.00027915,2]
[313973182,1707897036059,-253.02146915,0.00027916,2]
[313973183,1707897036068,-969.27668517,0.00028,2]
[313973184,1707897036077,-31545.47793448,0.00028,2]
[313973185,1707897036089,-7266.00620357,0.00028,2]
[313973186,1707897036101,-749.65001992,0.00028,2]
[313973187,1707897036112,-549.35079271,0.00028,2]
[313973192,1707897037848,-548.045788,0.00028,2]
[313973199,1707897037904,-882.43281403,0.00028,2]
[313973201,1707897037915,-163361.52043145,0.00028,2]
[313973203,1707897037924,-75517.21661847,0.00028,2]
[313973208,1707897037961,-14507.25660003,0.00028,2]
[313973216,1707897038068,-2850.93961544,0.00028,2]
[313973218,1707897038082,-422.83764416,0.00028,2]
[313973223,1707897038123,-967.78,0.00028,2]
[313973224,1707897038233,-500.0,0.00028,2]
[313973456,1707897040537,-31883.56084247,0.00028,2]
[313973474,1707897040693,-998.486475,0.00028,2]
[313973481,1707897040749,-4330.35428494,0.00028,2]
[313973483,1707897040762,-9420.39008292,0.00028,2]
[313973486,1707897040774,-1267.80842534,0.00028,2]
[313973490,1707897040805,-637.26935831,0.00028,2]
[313973645,1707897042555,-2987.52909947,0.00028,2]
[313973647,1707897042568,-339.43659995,0.00028,2]
[313973650,1707897042579,-505.69196703,0.00028,2]
[313973688,1707897042894,-2766.74509039,0.00028,2]
[313973695,1707897042950,-600.57567707,0.00028,2]
[313973702,1707897043007,-1300.1326,0.00028,2]
[313973705,1707897043019,-2270.29433877,0.00028,2]
[313973716,1707897043119,-303.26995463,0.00028,2]
[313973723,1707897043174,-2923.01198045,0.00028,2]
[313973725,1707897043186,-2343.59286115,0.00028,2]
[313973730,1707897043230,-1640.56890782,0.00028,2]
[313973732,1707897043241,-10597.80991155,0.00028,2]
[313973735,1707897043253,-143.94006235,0.00028,2]
[313973737,1707897043263,-2512.0,0.00028,2]
[313973739,1707897043272,-150.0,0.00028,2]
[313973741,1707897043282,-14311.66613547,0.0002802,2]
[313973743,1707897043294,-543.76423035,0.0002802,2]
[313974012,1707897045950,-3479.80917636,0.0002802,2]
[313974015,1707897045972,-2859.71598182,0.0002802,2]
[313974021,1707897046019,-40364.70500435,0.0002802,2]
[313974023,1707897046028,-531.12,0.00028021,2]
[313974025,1707897046038,-646.11933459,0.00028022,2]
[313974027,1707897046047,-152.0,0.00028097,7]
[313974029,1707897046057,-354.32,0.000281,2]
[313974031,1707897046068,-50000.0,0.000282,2]
[313974033,1707897046078,-1000.0,0.000282,2]
[313974035,1707897046088,-195.77487284,0.00028205,2]
[313974038,1707897046098,-173.77388307,0.00028246,2]
[313974040,1707897046107,-400.0,0.0002827,2]
[313974042,1707897046116,-200.0,0.000283,2]
[313974044,1707897046125,-238.145774,0.000283,2]
[313974046,1707897046134,-1988.471398,0.000283,2]
[313974048,1707897046143,-354.79872589,0.00028312,2]
[313974050,1707897046153,-1000.0,0.00028329,7]
[313974052,1707897046162,-1000.0,0.00028329,7]
[313974054,1707897046171,-321.35035099,0.00028345,2]
[313974056,1707897046180,-168.05679752,0.00028345,2]
[313974058,1707897046190,-201.76666813,0.00028345,2]
[313974060,1707897046199,-241.00185251,0.00028345,2]
[313974062,1707897046208,-247.16276999,0.00028345,2]
[313974064,1707897046217,-815.78481228,0.00028345,2]
[313974066,1707897046227,-74692.73532284,0.00028345,2]
[313974068,1707897046236,-155.0,0.00028346,2]
[313974070,1707897046245,-1747.51054989,0.00028346,2]
[313974072,1707897046255,-1286.23770209,0.00028346,2]
[313974074,1707897046264,-27822.96484714,0.00028347,7]
[313974076,1707897046274,-1000.0,0.00028347,7]
[313974078,1707897046284,-1000.0,0.00028347,7]
[313974080,1707897046293,-1000.0,0.00028347,7]
[313974082,1707897046303,-512.26744547,0.00028347,2]
[313974084,1707897046312,-12056.9243888,0.00028347,2]
[313974086,1707897046323,-200.0,0.00028347,2]
[313974088,1707897046333,-2609.07512197,0.00028347,2]
[313974090,1707897046342,-2479.23100516,0.00028347,2]
[313974093,1707897046355,-1520.76899484,0.00028347,2]
[313974095,1707897046364,-196.6046712,0.00028353,2]
[313974097,1707897046377,-466.37534612,0.00028353,2]
[313974100,1707897046389,-1550.7539959,0.00028353,2]
[313974103,1707897046414,-4310.18178988,0.00028353,2]
[313974106,1707897046424,-206.0,0.00028372,2]
[313974108,1707897046434,-450.8255212,0.00028416,2]
[313974110,1707897046443,-153.97684618,0.00028481,2]
[313974112,1707897046453,-2506.973282,0.00028522,2]
[313974114,1707897046464,-5950.03124079,0.00028524,7]
[313974116,1707897046476,-34935.88040487,0.00028524,7]
[313974119,1707897046488,-9114.08835434,0.00028524,7]
[313974121,1707897046497,-168.50558898,0.00028567,4]
[313974123,1707897046507,-603.72976308,0.00028602,2]
[313974125,1707897046516,-152.0,0.00028702,8]
[313974127,1707897046526,-431.89997433,0.00028766,2]
[313974129,1707897046535,-155.0,0.00028767,2]
[313974131,1707897046545,-200.0,0.000288,2]
[313974133,1707897046555,-150.0,0.00028808,2]
[313974135,1707897046564,-150.0,0.00028808,2]
[313974137,1707897046574,-150.0,0.00028808,2]
[313974139,1707897046584,-150.0,0.00028808,2]
[313974141,1707897046593,-249.6023,0.00028808,2]
[313974143,1707897046602,-730.1741,0.000289,3]
[313974145,1707897046611,-2769.98501384,0.00029,2]
[313974147,1707897046621,-744.25892508,0.00029,15]
[313974150,1707897046643,-974.13739181,0.00029,15]
[313974153,1707897046660,-6476.5019781,0.00029,15]
[313974155,1707897046673,-518.81266813,0.00029,15]
[313974158,1707897046685,-302.03380715,0.00029,15]
[313974319,1707897518651,506.39042981,0.00022,2]
[313974320,1707897543577,1048.97720425,0.00021965,2]
[313974321,1707897543597,951.02279575,0.00021965,2]
[313974322,1707897558462,1048.97720425,0.00021715,2]
[313974323,1707897558482,2000.0,0.00021715,2]
[313974324,1707897558503,103.35767395,0.00021715,2]
[313974325,1707897574541,1896.64232605,0.00021715,2]
[313974326,1707897574562,1256.67694795,0.00021715,2]
[313974327,1707897575177,155.0,0.00021715,2]
[313974328,1707897576413,500.0,0.00021715,2]
[313974329,1707897580612,88.32305205,0.00021715,2]
[313974330,1707897580636,800.67567474,0.00021715,2]
[313974331,1707897588938,223.36663991,0.00021715,2]
[313974332,1707897592426,500.0,0.00021715,2]
[313974333,1707897598619,475.95768535,0.00021715,2]
[313974334,1707897598641,413.04104144,0.00021715,2]
[313974335,1707897614412,413.24055692,0.00021715,2]
[313974336,1707897620446,1173.71840164,0.00021715,2]
[313974337,1707897620468,1999.61569885,0.00021715,2]
[313974338,1707897620623,0.38430115,0.00021715,2]
[313974339,1707897620645,888.61442564,0.00021715,2]
[313974340,1707897622401,278.67274892,0.00022,2]
[313974341,1707897629638,200.0,0.00021973,2]
[313974342,1707897634616,632.71282544,0.00021715,2]
[313974343,1707897634639,256.28590135,0.00021715,2]
[313974344,1707897650871,526.46,0.00021928,2]
[313974345,1707897652627,744.53815666,0.00021715,2]
[313974346,1707897678701,152.25037,0.00022,2]
[313974347,1707897695707,320.46557199,0.00019991,2]
[313974348,1707897695734,1.39442801,0.00019991,2]
[313974349,1707897713632,19105.50734337,0.00021899,2]
[313974350,1707897739709,2673.85223,0.0002179,2]
[313974351,1707897740873,155.0,0.00021899,2]
[313974352,1707897769902,338.89802293,0.00021899,2]
[313974353,1707897844405,338.89802293,0.00021899,2]
[313974354,1707897895129,-284.02261227,0.00022998,3]
[313974355,1707897895153,-515.97738773,0.00023,3]
[313974356,1707897921320,338.89802293,0.00021899,2]
[313974357,1707897923998,184.98362258,0.00021805,2]
[313974358,1707897980777,1000.0,0.00021,2]
[313974359,1707898016392,635.9033641,0.00021899,2]
[313974361,1707898042715,1000.0,0.00021851,2]
[313974363,1707898094895,423.93557606,0.00021899,2]
[313974364,1707898127676,176.86,0.00016712,2]
[313974365,1707898133078,2000.0,0.00021851,2]
[313974375,1707898165040,334.13,0.00019974,2]
[313974376,1707898165403,353.27964672,0.00021899,2]
[313974379,1707898224089,4276.56,0.00021847,2]
[313974419,1707898232211,-495.14,0.00021905,2]
[313974420,1707898232221,-641.15,0.00021908,2]
[313974421,1707898232230,-165.75,0.00021908,2]
[313974422,1707898232239,-200.0,0.00021908,2]
[313974423,1707898232248,-632.2,0.00021918,2]
[313974424,1707898232257,-193.23,0.00021921,2]
[313974425,1707898232266,-243.69321385,0.00021933,2]
[313974426,1707898232278,-6.30678615,0.00021933,2]
[313974427,1707898232287,-500.0,0.00021941,2]
[313974428,1707898232296,-160.5,0.00022064,2]
[313974429,1707898232306,-1646.37207931,0.00022172,2]
[313974430,1707898232334,-862.46196121,0.00022172,2]
[313974431,1707898232346,-334.13,0.00022238,2]
[313974432,1707898232384,-703.40803879,0.00022617,2]
[313974433,1707898232396,-331.62881422,0.00022617,2]
[313974434,1707898235636,-794.36483346,0.00022617,2]
[313974435,1707898235646,-6418.61398417,0.00022617,2]
[313974436,1707898235657,-377.37407098,0.00022617,2]
[313974437,1707898235669,-507.99999975,0.00022617,2]
[313974438,1707898235749,-282.38722525,0.00022617,2]
[313974439,1707898235761,-2190.22572218,0.00022617,2]
[313974440,1707898235772,-1053.42704108,0.00022617,2]
[313974441,1707898235784,-1265.4301506,0.00022617,2]
[313974462,1707898238168,-730.05188774,0.00022617,2]
[313974463,1707898238179,-1007.38297438,0.00022617,2]
[313974464,1707898238191,-627.74580422,0.00022617,2]
[313974465,1707898238202,-8033.67806456,0.00022617,2]
[313974466,1707898238225,-784.20550947,0.00022617,2]
[313974467,1707898238237,-3735.90013058,0.00022617,2]
[313974468,1707898238246,-160.5,0.00022638,2]
[313974469,1707898238256,-161.31245663,0.0002276,2]
[313974470,1707898238266,-161.31245658,0.00022783,2]
[313974471,1707898238275,-17246.109,0.000228,2]
[313974472,1707898238284,-4519.8667,0.000228,2]
[313974473,1707898238293,-252.7583835,0.000228,2]
[313974474,1707898238303,-161.31245658,0.00022807,2]
[313974475,1707898238312,-252.75838347,0.00022814,2]
[313974476,1707898238323,-252.75838347,0.00022829,2]
[313974477,1707898238333,-161.31245658,0.0002283,2]
[313974478,1707898238346,-252.75838347,0.00022843,2]
[313974479,1707898238356,-161.31245658,0.00022853,2]
[313974480,1707898238366,-252.75838347,0.00022857,2]
[313974481,1707898238375,-159.62866104,0.00022858,2]
[313974482,1707898238385,-450.0,0.00022858,2]
[313974483,1707898238394,-283.73626803,0.00022858,2]
[313974484,1707898238404,-155.55081554,0.00022858,2]
[313974485,1707898238414,-12440.06372914,0.00022859,2]
[313974486,1707898238423,-20269.3479,0.0002286,2]
[313974487,1707898238432,-4348.2432,0.0002286,2]
[313974488,1707898238441,-202.2781,0.0002286,2]
[313974489,1707898238451,-1000.0,0.0002286,2]
[313974490,1707898238460,-91633.6728,0.0002286,2]
[313974492,1707898238470,-252.75838347,0.00022871,2]
[313974493,1707898238479,-161.31245658,0.00022877,2]
[313974494,1707898238488,-252.75838347,0.00022886,2]
[313974495,1707898238497,-528.78755996,0.00022899,2]
[313974496,1707898238507,-464.0,0.00022899,2]
[313974497,1707898238516,-206.88811688,0.000229,2]
[313974499,1707898238526,-161.31245658,0.000229,2]
[313974501,1707898238535,-5000.0,0.000229,2]
[313974503,1707898238544,-15892.73,0.000229,2]
[313974505,1707898238554,-50402.28,0.000229,2]
[313974507,1707898238563,-409.90657922,0.000229,2]
[313974510,1707898238573,-168.29903438,0.000229,2]
[313974512,1707898238583,-50402.28,0.000229,2]
[313974514,1707898238592,-7042.30560742,0.000229,2]
[313974516,1707898238601,-250.40561582,0.000229,2]
[313974518,1707898238610,-708.91949677,0.000229,2]
[313974520,1707898238620,-72087.44758745,0.000229,2]
[313974522,1707898238629,-92945.49885118,0.00022959,2]
[313974524,1707898238638,-216.29960539,0.00022959,2]
[313974526,1707898238648,-100166.13033701,0.0002296,2]
[313974528,1707898238657,-258.92712078,0.00022988,2]
[313974530,1707898238666,-258.92712078,0.0002299,2]
[313974532,1707898238676,-258.92712078,0.0002299,2]
[313974534,1707898238685,-1912.95752079,0.00022996,2]
[313974536,1707898238695,-7476.39827816,0.00022997,2]
[313974538,1707898238704,-123228.62937977,0.00022998,2]
[313974540,1707898238713,-654.90751796,0.00022998,2]
[313974542,1707898238722,-207.69507371,0.00022998,2]
[313974543,1707898238731,-295.58287398,0.00022998,2]
[313974546,1707898238741,-155.0,0.00022998,2]
[313974548,1707898238750,-360.41408828,0.00022998,2]
[313974550,1707898238759,-1053.35953247,0.00022998,2]
[313974552,1707898238772,-197.16242986,0.00022998,2]
[313974554,1707898238781,-155.80389697,0.00022998,2]
[313974556,1707898238791,-755.08957542,0.00022998,2]
[313974558,1707898238803,-155.43738666,0.00022998,2]
[313974560,1707898238812,-105608.34134758,0.00022999,2]
[313974562,1707898238823,-203.38708433,0.00022999,2]
[313974564,1707898238833,-1279.88693332,0.00022999,2]
[313974566,1707898238842,-800.2825571,0.00022999,2]
[313974568,1707898238852,-3023.04501083,0.00022999,2]
[313974570,1707898238861,-195.20609658,0.00022999,2]
[313974572,1707898238870,-3068.39387962,0.00022999,2]
[313974575,1707898238883,-2361.04789368,0.00022999,2]
[313974577,1707898238894,-773.40052478,0.00022999,2]
[313974579,1707898238904,-304.33848507,0.00022999,2]
[313974581,1707898238914,-169987.91139414,0.00023,3]
[313974583,1707898238923,-187.04733421,0.00023,3]
[313974585,1707898238933,-2302130.14905077,0.00023,2]
[313974587,1707898238946,-2850.93961544,0.00023,2]
[313974590,1707898238959,-4142.1691104,0.00023,2]
[313974594,1707898238989,-6459.07389811,0.00023,2]
[313974596,1707898239000,-746.1535389,0.00023,2]
[313974598,1707898239012,-741.27723955,0.00023,2]
[313974601,1707898239025,-420.8888349,0.00023,2]
[313974603,1707898239036,-313.89851893,0.00023,2]
[313974606,1707898239052,-4978.00056741,0.00023,2]
[313974608,1707898239064,-1934.6,0.00023,2]
[313974610,1707898239075,-310.97574631,0.00023,2]
[313974678,1707898239694,-574.98736815,0.00023,2]
[313974684,1707898239737,-258.61400001,0.00023,2]
[313974688,1707898239772,-648.5229323,0.00023,2]
[313974771,1707898240938,-174.43474662,0.00022616,2]
[313974772,1707898240965,-9.62394932,0.00022616,2]
[313974773,1707898240976,-242.03290068,0.000229,2]
[313974774,1707898240992,-10.72548279,0.000229,2]
[313974775,1707898241004,-6654.19856965,0.00023,2]
[313974776,1707898241036,-452.25615153,0.00023,2]
[313974777,1707898241052,-359.45574608,0.00023,2]
[313974778,1707898241067,-251.58,0.00023,2]
[313974779,1707898241093,-1084.41331943,0.00023,2]
[313974780,1707898241109,-322.25706152,0.00023,2]
[313974870,1707898243145,-878.49394085,0.00023,2]
[313974871,1707898243157,-71863.02014817,0.00023,2]
[313974872,1707898243259,-16098.6689283,0.00023,2]
[313974873,1707898243270,-52441.81651022,0.00023,2]
[313974874,1707898243282,-9728.01430002,0.00023,2]
[313974875,1707898243316,-250.0,0.00021932,2]
[313974876,1707898243327,-6274.09961968,0.00023,2]
[313974877,1707898243339,-359.73856219,0.00023,2]
[313974878,1707898243388,-1035.08264991,0.00023,2]
[313974879,1707898243401,-6797.06973885,0.00023,2]
[313974880,1707898243412,-7475.58304589,0.00023,2]
[313974881,1707898243440,-3075.10550869,0.00023,2]
[313974882,1707898243451,-2217.96329571,0.00023,2]
[313974883,1707898243490,-15005.07972921,0.00023,2]
[313974885,1707898246058,-55347.79902965,0.00023,2]
[313974886,1707898246177,-328.8000002,0.00023,2]
[313974887,1707898246204,-2496.55905569,0.00023,2]
[313974890,1707898246272,-626.86484445,0.00023,2]
[313974891,1707898246348,-4797.25303539,0.00023,2]
[313974894,1707898400487,-184.05869594,0.00021999,2]
[313974895,1707898400511,-150.0,0.00022,2]
[313974896,1707898400534,-10557.85314847,0.00022076,2]
[313974897,1707898400556,-1912.95752079,0.00022077,2]
[313974898,1707898400579,-424.87604364,0.00022078,2]
[313974899,1707898400604,-159.02536048,0.0002266,2]
[313974900,1707898400627,-2552.98923228,0.00022759,2]
[313974901,1707898400651,-150.0,0.00022759,2]
[313974902,1707898400678,-451.4658,0.0002276,2]
[313974903,1707898400703,-179.35,0.00022874,2]
[313974904,1707898400727,-8107.1628,0.000229,2]
[313974905,1707898400750,-5000.0,0.000229,2]
[313974906,1707898400775,-10780.88862591,0.000229,2]
[313974907,1707898400798,-709.12260169,0.00022998,3]
[313974908,1707898400821,-304.33848507,0.00022998,2]
[313974909,1707898400846,-2361.04789368,0.00022998,2]
[313974910,1707898400869,-3068.39387962,0.00022998,2]
[313974911,1707898400896,-1279.88693332,0.00022998,2]
[313974912,1707898400918,-195.20609658,0.00022998,2]
[313974913,1707898400944,-773.40052478,0.00022998,2]
[313974914,1707898400967,-800.2825571,0.00022998,2]
[313974915,1707898400990,-203.38708433,0.00022998,2]
[313974916,1707898401015,-193.60338785,0.00022998,2]
[313974917,1707898401040,-3023.04501083,0.00022998,2]
[313974918,1707898401061,-338.76210274,0.00022999,2]
[313974919,1707898401088,-187.04733421,0.00023,3]
[313974920,1707898401112,-169987.91139414,0.00023,3]
[313974921,1707898401134,-1953.86891907,0.00023,3]
[313974922,1707898401157,-1649.08728949,0.00023,3]
[313974923,1707898401182,-4772360.98127799,0.00023,2]
[313974924,1707898657122,340.9,0.00021125,2]
[313974925,1707899035797,824.35,0.00021898,2]
[313974926,1707899169018,350.21,0.00019874,2]
[313974927,1707899177368,250.0,0.00021761,2]
[313974928,1707899186146,2000.0,0.00021766,2]
[313974934,1707899246861,200.0,0.00021784,2]
[313974935,1707899253902,206.0,0.00021372,2]
[313974941,1707899303774,179.35,0.00021774,2]
[313974947,1707899342576,184.05869594,0.00022896,30]
[313974950,1707899364569,184.05869594,0.00022896,30]
[313974954,1707899379165,180.11,0.000218,2]
[313974955,1707899379754,416.6495,0.00021829,2]
[313974956,1707899382581,184.05869594,0.00022896,30]
[313974960,1707899400574,184.05869594,0.00022896,30]
[313974961,1707899418703,184.05869594,0.00022896,30]
[313974962,1707899427851,170.14,0.00021776,2]
[313974978,1707899432262,-155.0,0.00021928,2]
[313974979,1707899432273,-1912.95752079,0.00021929,2]
[313974980,1707899432282,-165.36,0.00022017,2]
[313974981,1707899432292,-2129.34,0.00022103,2]
[313974982,1707899432302,-151.43076258,0.00022119,2]
[313974983,1707899432312,-350.21,0.00022138,2]
[313974984,1707899432321,-2129.34,0.00022219,2]
[313974985,1707899432332,-1339.43855412,0.00022293,2]
[313974986,1707899432343,-211.39,0.00022321,2]
[313974987,1707899432352,-464.0,0.00022321,2]
[313974988,1707899432362,-150.99,0.00022321,2]
[313974989,1707899432371,-311.44,0.00022336,2]
[313974990,1707899432382,-1048.52967283,0.00022336,2]
[313974991,1707899432400,-1080.81032717,0.00022336,2]
[313974992,1707899432410,-1611.25944815,0.00022452,2]
[313974993,1707899432422,-518.08055185,0.00022452,2]
[313974994,1707899432431,-1339.43855412,0.00022558,2]
[313974995,1707899432441,-938.97170198,0.00022568,2]
[313974996,1707899432474,-1190.36829802,0.00022568,2]
[313974997,1707899432484,-138.818008,0.00022591,2]
[313974998,1707899432496,-26.541992,0.00022591,2]
[313974999,1707899432505,-2129.34,0.00022685,2]
[313975000,1707899432515,-150.0,0.00022715,2]
[313975001,1707899432524,-186.21716878,0.00022716,2]
[313975002,1707899432536,-264.55,0.00022716,2]
[313975003,1707899432557,-136.17283122,0.00022716,2]
[313975004,1707899432567,-154.7233,0.0002277,2]
[313975005,1707899432576,-151.50763,0.0002277,2]
[313975006,1707899432585,-200.96014643,0.000228,2]
[313975008,1707899432610,-1336.63347607,0.000228,2]
[313975009,1707899432622,-346.14684546,0.000228,2]
[313975010,1707899432648,-1033.7,0.000228,2]
[313975014,1707899432681,-3010.50163204,0.000228,2]
[313975016,1707899432690,-1561.85901184,0.000228,2]
[313975019,1707899432710,-266.569,0.000228,2]
[313975022,1707899432721,-622.59271794,0.000228,2]
[313975024,1707899432733,-461.57652245,0.000228,2]
[313975026,1707899432745,-366.91487999,0.000228,2]
[313975034,1707899434591,184.05869594,0.00022896,30]
[313975036,1707899439659,-1720.48786778,0.000228,2]
[313975037,1707899439669,-151.43076257,0.000228,2]
[313975038,1707899439678,-236.30649893,0.000228,2]
[313975039,1707899439687,-2347.43520248,0.000228,2]
[313975040,1707899439697,-2129.34,0.00022801,2]
[313975041,1707899439706,-151.0214,0.00022878,3]
[313975042,1707899439715,-151.0214,0.00022878,3]
[313975043,1707899439725,-258.92712078,0.0002289,2]
[313975044,1707899439734,-258.92712078,0.0002289,2]
[313975045,1707899439744,-387.80808766,0.00022897,2]
[313975046,1707899439753,-1053.35953247,0.00022898,2]
[313975047,1707899439762,-155.43738666,0.00022898,2]
[313975048,1707899439771,-295.58287398,0.00022898,2]
[313975049,1707899439781,-654.90751796,0.00022898,2]
[313975050,1707899439791,-197.16242986,0.00022898,2]
[313975051,1707899439800,-5364.87319988,0.00022898,2]
[313975052,1707899439813,-961.40654544,0.00022898,2]
[313975053,1707899439825,-86619.21910586,0.00022898,2]
[313975054,1707899439834,-155.0,0.00022898,2]
[313975055,1707899439844,-207.69507371,0.00022898,2]
[313975056,1707899439853,-216.29960539,0.00022898,2]
[313975057,1707899439862,-155.80389697,0.00022898,2]
[313975058,1707899439871,-360.41408828,0.00022898,2]
[313975059,1707899439881,-755.08957542,0.00022898,2]
[313975060,1707899439890,-7476.39827816,0.00022898,2]
[313975061,1707899439898,-7036.67784715,0.000229,3]
[313975062,1707899439916,-77957.27784992,0.000229,3]
[313975063,1707899439925,-2544432.01226025,0.000229,3]
[313975064,1707899439936,-2117.626,0.000229,2]
[313975065,1707899439947,-123228.62937977,0.000229,2]
[313975066,1707899439957,-116697.29,0.000229,2]
[313975067,1707899439967,-2129.34,0.00022917,2]
[313975068,1707899439976,-258.92712078,0.0002299,2]
[313975069,1707899439986,-5291.58980406,0.00022999,2]
[313975070,1707899439996,-252248.45494166,0.00023,2]
[313975072,1707899440008,-2850.93961544,0.00023,2]
[313975073,1707899440019,-2086.42365342,0.00023,2]
[313975074,1707899440046,-876.85618528,0.00023,2]
[313975075,1707899440057,-523.73272136,0.00023,2]
[313975077,1707899440128,-496.80282545,0.00023,2]
[313975078,1707899440162,-26606.99621,0.00023,2]
[313975079,1707899440189,-151.0214,0.00022878,3]
[313975080,1707899440198,-3772.4134673,0.00023,2]
[313975081,1707899440927,-151.0214,0.00022878,3]